[Event "DFMMLV 2024"]
[Site "Braunfels"]
[Date "2024.05.31"]
[Round "3.28"]
[White "Mader, Lena"]
[Black "Peglau, Mirjam"]
[Result "0-1"]
[ECO "A34"]
[WhiteElo "1902"]
[BlackElo "1948"]
[Annotator "RC"]
[PlyCount "154"]
[EventDate "2024.05.30"]
[EventType "team-tourn"]
[EventCountry "GER"]
[SourceTitle "playchess.com"]
[Source "ChessBase"]
[SourceQuality "1"]
[TimeControl "40/5400+30:1800+30"]

1. c4 {[%emt 0:00:02]} c5 {[%emt 0:00:03]} 2. g3 {[%emt 0:00:05]} Nf6 {[%emt 0:00:05]} 3. Bg2 {[%emt 0:00:04]} d5 {[%emt 0:00:06]} 4. cxd5 {[%emt 0:00:08]} Nxd5 {[%emt 0:00:02]} 5. Nc3 {[%emt 0:00:10]} Nc7 {[%emt 0:00:11]} 6. Nf3 {[%emt 0:00:49]} Nc6 {[%emt 0:00:09]} 7. O-O {[%emt 0:01:39]} e5 {[%emt 0:00:07]} 8. d3 {[%emt 0:00:17]} Be7 {[%emt 0:00:23]} 9. b3 {[%emt 0:02:12]} Be6 {[%emt 0:00:55]} 10. Bb2 {[%emt 0:03:11]} f6 {[%emt 0:00:49]} 11. Rc1 {[%emt 0:02:12]} Qd7 {[%emt 0:00:13]} 12. Re1 {[%emt 0:12:21]} O-O {[%emt 0:00:52]} 13. Qc2 {[%emt 0:02:08]} Rac8 {[%emt 0:00:51]} 14. Qb1 {[%emt 0:00:42]} Rfd8 {[%emt 0:00:25]} 15. Red1 {[%emt 0:00:33]} b6 {[%emt 0:01:28]} 16. Qa1 {[%emt 0:04:00]} Bg4 {[%emt 0:04:03]} 17. Ne4 {[%emt 0:12:41]} Nb5 {[%emt 0:03:38]} 18. Rc2 {[%emt 0:06:04]} Qf5 {[%emt 0:16:46]} 19. Re1 {[%emt 0:05:48]} Bxf3 {[%emt 0:02:41]} 20. Bxf3 {[%emt 0:06:56]} Nbd4 {[%emt 0:00:27]} 21. Bxd4 {[%emt 0:00:16]} Nxd4 {[%emt 0:00:02]} 22. Qd1 {[%emt 0:00:42]} Nxc2 {[%emt 0:01:04]} 23. Qxc2 {[%emt 0:00:01]} Qe6 {[%emt 0:01:30]} 24. Nc3 {[%emt 0:11:41]} f5 {[%emt 0:01:40]} 25. Nb5 {[%emt 0:03:08]} a6 {[%emt 0:02:23]} 26. Nc3 {[%emt 0:00:36]} Rc7 {[%emt 0:01:04]} 27. a4 {[%emt 0:06:57]} Bf6 {[%emt 0:00:50]} 28. e4 {[%emt 0:04:03]} fxe4 {[%emt 0:09:57]} 29. Bxe4 {[%emt 0:00:32]} Rcd7 {[%emt 0:08:05]} 30. Ne2 {[%emt 0:11:02]} g6 {[%emt 0:05:38]} 31. Rb1 {[%emt 0:00:58]} Kg7 {[%emt 0:04:51]} 32. Kg2 {[%emt 0:00:43]} Be7 {[%emt 0:03:54]} 33. Kg1 {[%emt 0:01:29]} Rf8 {[%emt 0:03:50]} 34. Rf1 {[%emt 0:00:19]} Bg5 {[%emt 0:02:41]} 35. h4 {[%emt 0:01:57]} Bh6 {[%emt 0:01:06]} 36. Kg2 {[%emt 0:00:10]} Rdf7 {[%emt 0:01:28]} 37. f3 {[%emt 0:00:01]} Be3 {[%emt 0:05:28]} 38. Nc3 {[%emt 0:00:12]} Rd7 {[%emt 0:00:51]} 39. Ne2 {[%emt 0:00:03]} b5 {[%emt 0:01:24]} 40. axb5 {[%emt 0:00:28]} axb5 {[%emt 0:00:00]} 41. Ra1 {[%emt 0:30:57]} Qb6 {[%emt 0:32:21]} 42. Ra2 {[%emt 0:00:00]} Ra7 {[%emt 0:00:00]} 43. Rb2 {[%emt 0:00:00]} Rff7 {[%emt 0:00:00]} 44. Qb1 {[%emt 0:00:00]} Ra3 {[%emt 0:00:00]} 45. Ra2 {[%emt 0:00:00]} Qa5 {[%emt 0:00:00]} 46. Rxa3 {[%emt 0:00:00]} Qxa3 {[%emt 0:00:00]} 47. Nc3 {[%emt 0:00:00]} Qb4 {[%emt 0:00:00]} 48. Qc2 {[%emt 0:00:00]} Bd4 {[%emt 0:00:00]} 49. Ne2 {[%emt 0:00:33]} Ra7 {[%emt 0:00:00]} 50. Nxd4 {[%emt 0:00:16]} Qxd4 {[%emt 0:00:00]} 51. Qf2 {[%emt 0:00:39]} Qc3 {[%emt 0:03:56]} 52. f4 {[%emt 0:02:47]} exf4 {[%emt 0:05:26]} 53. gxf4 {[%emt 0:00:01]} Rf7 {[%emt 0:05:29]} 54. Kg3 {[%emt 0:00:33]} Rc7 {[%emt 0:02:50]} 55. h5 {[%emt 0:00:33]} Qxb3 {[%emt 0:00:58]} 56. hxg6 {[%emt 0:00:34]} hxg6 {[%emt 0:00:01]} 57. f5 {[%emt 0:00:32]} gxf5 {[%emt 0:02:37]} 58. Qxf5 {[%emt 0:00:02]} Qf7 {[%emt 0:00:31]} 59. Qg5+ {[%emt 0:01:18]} Kh8 {[%emt 0:01:32]} 60. Qd8+ {[%emt 0:01:28]} Qg8+ {[%emt 0:00:12]} 61. Qxg8+ {[%emt 0:00:04]} Kxg8 {[%emt 0:00:06]} 62. Kf4 {[%emt 0:00:23]} Kf7 {[%emt 0:01:23]} 63. Ke5 {[%emt 0:01:09]} Ke7 {[%emt 0:00:39]} 64. Kd5 {[%emt 0:01:17]} c4 {[%emt 0:01:02]} 65. dxc4 {[%emt 0:00:36]} bxc4 {[%emt 0:00:08]} 66. Bc2 {[%emt 0:01:05]} c3 {[%emt 0:00:06]} 67. Kd4 {[%emt 0:00:12]} Kd6 {[%emt 0:00:20]} 68. Kd3 {[%emt 0:00:12]} Ke5 {[%emt 0:00:56]} 69. Bb3 {[%emt 0:00:20]} Rc5 {[%emt 0:00:55]} 70. Ba4 {[%emt 0:00:14]} Kd5 {[%emt 0:00:47]} 71. Bc2 {[%emt 0:00:42]} Kc6 {[%emt 0:00:20]} 72. Kd4 {[%emt 0:01:54]} Kb5 {[%emt 0:00:29]} 73. Bd3+ {[%emt 0:00:19]} Kb4 {[%emt 0:00:12]} 74. Bc2 {[%emt 0:00:01]} Rc8 {[%emt 0:00:20]} 75. Kd3 {[%emt 0:00:48]} Rd8+ {[%emt 0:00:05]} 76. Ke3 {[%emt 0:00:13]} Rd2 {[%emt 0:00:23]} 77. Bf5 {[%emt 0:00:16]} Rh2 {[%emt 0:00:40]} 0-1

[Event "DFMMLV 2024"]
[Site "Braunfels"]
[Date "2024.05.31"]
[Round "3.29"]
[White "Just, Anita"]
[Black "Braje, Monika"]
[Result "1-0"]
[ECO "B01"]
[WhiteElo "1884"]
[BlackElo "1861"]
[Annotator "NA RC"]
[PlyCount "83"]
[EventDate "2024.05.30"]
[EventType "team-tourn"]
[EventCountry "GER"]
[SourceTitle "playchess.com"]
[Source "ChessBase"]
[SourceQuality "1"]
[TimeControl "40/5400+30:1800+30"]

1. e4 {[%emt 0:00:02]} d5 {[%emt 0:00:03]} 2. exd5 {[%emt 0:00:24]} Nf6 {[%emt 0:00:09]} 3. Bb5+ {[%emt 0:00:59]} Bd7 {[%emt 0:00:11]} 4. Be2 {[%emt 0:00:13]} Nxd5 {[%emt 0:00:31]} 5. Nf3 {[%emt 0:00:29]} g6 {[%emt 0:01:31]} 6. d4 {[%emt 0:01:32]} Bg7 {[%emt 0:00:07]} 7. O-O {[%emt 0:01:01]} O-O {[%emt 0:00:14]} 8. c4 {[%emt 0:01:45]} Nb6 {[%emt 0:01:11]} 9. Nc3 {[%emt 0:01:27]} c6 {[%emt 0:00:20]} 10. h3 {[%emt 0:07:46]} Qc7 {[%emt 0:06:36]} 11. Bg5 {[%emt 0:06:36]} Be6 {[%emt 0:06:28]} 12. Qb3 {[%emt 0:05:55]} f6 {[%emt 0:04:44]} 13. Bh4 {[%emt 0:04:28]} Bf7 {[%emt 0:02:21]} 14. Bg3 {[%emt 0:02:12]} Qc8 {[%emt 0:01:22]} 15. a4 {[%emt 0:06:19]} N6d7 {[%emt 0:02:20]} 16. Qa3 {[%emt 0:01:53]} e5 {[%emt 0:00:45]} 17. Ne4 {[%emt 0:04:02]} Qd8 {[%emt 0:11:02]} 18. Nd6 {[%emt 0:06:34]} Qe7 {[%emt 0:00:52]} 19. Nxb7 {[%emt 0:02:36]} Qxa3 {[%emt 0:00:27]} 20. Rxa3 {[%emt 0:00:21]} exd4 {[%emt 0:01:54]} 21. Nxd4 {[%emt 0:00:35]} f5 {[%emt 0:00:17]} 22. Rd1 {[%emt 0:01:58]} Re8 {[%emt 0:08:02]} 23. Nd6 {[%emt 0:07:12]} Re7 {[%emt 0:06:27]} 24. Nxf7 {[%emt 0:04:10]} Kxf7 {[%emt 0:01:35]} 25. Bf3 {[%emt 0:03:29]} Ne5 {[%emt 0:05:25]} 26. Bxe5 {[%emt 0:02:08]} Rxe5 {[%emt 0:00:13]} 27. Nxc6 {[%emt 0:00:54]} Nxc6 {[%emt 0:00:19]} 28. Bxc6 {[%emt 0:00:06]} Rc8 {[%emt 0:00:39]} 29. Bd5+ {[%emt 0:00:32]} Kf8 {[%emt 0:00:23]} 30. Rb3 {[%emt 0:00:42]} Rce8 {[%emt 0:00:52]} 31. Rb7 {[%emt 0:03:43]} Re1+ {[%emt 0:02:42]} 32. Rxe1 {[%emt 0:00:07]} Rxe1+ {[%emt 0:00:04]} 33. Kh2 {[%emt 0:00:06]} Bd4 {[%emt 0:02:20]} 34. f4 {[%emt 0:08:03]} h6 {[%emt 0:05:07]} 35. b4 {[%emt 0:04:16]} Bg1+ {[%emt 0:00:54]} 36. Kg3 {[%emt 0:00:08]} Re3+ {[%emt 0:00:25]} 37. Bf3 {[%emt 0:00:20]} Rc3 {[%emt 0:03:05]} 38. c5 {[%emt 0:03:33]} Rc4 {[%emt 0:00:26]} 39. c6 {[%emt 0:01:29]} Be3 {[%emt 0:01:05]} 40. Bd5 {[%emt 0:04:00]} Bxf4+ {[%emt 0:06:53]} 41. Kf3 {[%emt 0:31:52]} Rd4 {[%emt 0:30:21]} 42. c7 {[%emt 0:04:18]} 1-0

[Event "DFMMLV 2024"]
[Site "Braunfels"]
[Date "2024.05.31"]
[Round "3.30"]
[White "Rotermund, Verena"]
[Black "Kosovska, Olena"]
[Result "1/2-1/2"]
[ECO "B23"]
[WhiteElo "1765"]
[BlackElo "1935"]
[Annotator "NA RC"]
[PlyCount "93"]
[EventDate "2024.05.30"]
[EventType "team-tourn"]
[EventCountry "GER"]
[SourceTitle "playchess.com"]
[Source "ChessBase"]
[SourceQuality "1"]
[TimeControl "40/5400+30:1800+30"]

1. e4 {[%emt 0:00:03]} c5 {[%emt 0:00:13]} 2. Nc3 {[%emt 0:01:01]} a6 {[%emt 0:00:47]} 3. a4 {[%emt 0:00:10]} e5 {[%emt 0:01:37]} 4. Bc4 {[%emt 0:00:33]} Nc6 {[%emt 0:01:01]} 5. d3 {[%emt 0:00:15]} Be7 {[%emt 0:02:23]} 6. f4 {[%emt 0:01:30]} exf4 {[%emt 0:04:19]} 7. Bxf4 {[%emt 0:01:27]} Bh4+ {[%emt 0:02:05]} 8. g3 {[%emt 0:00:38]} Bf6 {[%emt 0:00:14]} 9. Nf3 {[%emt 0:02:23]} d6 {[%emt 0:06:24]} 10. O-O {[%emt 0:02:06]} Nge7 {[%emt 0:03:34]} 11. Ng5 {[%emt 0:05:05]} O-O {[%emt 0:02:51]} 12. Qh5 {[%emt 0:05:22]} Bxg5 {[%emt 0:06:33]} 13. Bxg5 {[%emt 0:01:55]} Qe8 {[%emt 0:07:52]} 14. Rf2 {[%emt 0:11:48]} Be6 {[%emt 0:13:11]} 15. Bxe6 {[%emt 0:12:01]} fxe6 {[%emt 0:01:32]} 16. Rxf8+ {[%emt 0:00:37]} Qxf8 {[%emt 0:01:00]} 17. Rf1 {[%emt 0:01:17]} Qe8 {[%emt 0:01:36]} 18. Qg4 {[%emt 0:07:47]} Ng6 {[%emt 0:04:57]} 19. h4 {[%emt 0:05:10]} Nd4 {[%emt 0:01:11]} 20. h5 {[%emt 0:04:31]} Ne5 {[%emt 0:00:39]} 21. Qd1 {[%emt 0:01:02]} b5 {[%emt 0:04:41]} 22. axb5 {[%emt 0:04:15]} axb5 {[%emt 0:00:10]} 23. Bf4 {[%emt 0:01:13]} Nf7 {[%emt 0:02:27]} 24. h6 {[%emt 0:05:46]} b4 {[%emt 0:06:23]} 25. Qg4 {[%emt 0:02:34]} Nxh6 {[%emt 0:15:55]} 26. Bxh6 {[%emt 0:03:39]} Qg6 {[%emt 0:00:23]} 27. Qxg6 {[%emt 0:08:48]} hxg6 {[%emt 0:00:07]} 28. Be3 {[%emt 0:06:21]} bxc3 {[%emt 0:00:13]} 29. Bxd4 {[%emt 0:01:45]} cxd4 {[%emt 0:00:08]} 30. bxc3 {[%emt 0:00:40]} dxc3 {[%emt 0:00:04]} 31. Kg2 {[%emt 0:01:33]} Ra2 {[%emt 0:00:42]} 32. Rf2 {[%emt 0:00:01]} Kh7 {[%emt 0:00:13]} 33. Kf3 {[%emt 0:00:12]} g5 {[%emt 0:03:02]} 34. Ke3 {[%emt 0:00:30]} Ra4 {[%emt 0:03:13]} 35. d4 {[%emt 0:00:16]} Kg6 {[%emt 0:01:23]} 36. Kd3 {[%emt 0:00:10]} Ra3 {[%emt 0:02:12]} 37. Rf8 {[%emt 0:00:30]} Ra1 {[%emt 0:02:16]} 38. Rd8 {[%emt 0:00:39]} Rg1 {[%emt 0:00:59]} 39. Kxc3 {[%emt 0:00:25]} Rxg3+ {[%emt 0:00:03]} 40. Kc4 {[%emt 0:00:21]} Re3 {[%emt 0:00:38]} 41. Rxd6 {[%emt 0:30:34]} Rxe4 {[%emt 0:30:14]} 42. Kd3 {[%emt 0:01:10]} Re1 {[%emt 0:00:00]} 43. Kd2 {[%emt 0:00:00]} Re4 {[%emt 0:00:00]} 44. Kd3 {[%emt 0:00:00]} Kf5 {[%emt 0:00:00]} 45. Rd7 {[%emt 0:00:00]} Re1 {[%emt 0:00:00]} 46. Rxg7 {[%emt 0:00:00]} Rd1+ {[%emt 0:00:00]} 47. Ke3 {[%emt 0:05:57]} 1/2-1/2

[Event "DFMMLV 2024"]
[Site "Braunfels"]
[Date "2024.05.31"]
[Round "3.31"]
[White "Lowke, Kathrin"]
[Black "Graf, Ann-Jennifer"]
[Result "1/2-1/2"]
[ECO "C42"]
[WhiteElo "1893"]
[BlackElo "1827"]
[Annotator "NA RC"]
[PlyCount "48"]
[EventDate "2024.05.30"]
[EventType "team-tourn"]
[EventCountry "GER"]
[SourceTitle "playchess.com"]
[Source "ChessBase"]
[SourceQuality "1"]
[TimeControl "40/5400+30:1800+30"]

1. e4 {[%emt 0:00:04]} e5 {[%emt 0:00:03]} 2. Nf3 {[%emt 0:00:06]} Nf6 {[%emt 0:00:06]} 3. Nxe5 {[%emt 0:04:29]} d6 {[%emt 0:00:15]} 4. Nf3 {[%emt 0:00:06]} Nxe4 {[%emt 0:00:11]} 5. d4 {[%emt 0:00:08]} d5 {[%emt 0:00:23]} 6. Be2 {[%emt 0:00:32]} Bd6 {[%emt 0:00:41]} 7. O-O {[%emt 0:00:32]} O-O {[%emt 0:00:22]} 8. Be3 {[%emt 0:01:22]} Nd7 {[%emt 0:01:18]} 9. Nbd2 {[%emt 0:00:22]} Ndf6 {[%emt 0:00:40]} 10. c3 {[%emt 0:03:02]} Re8 {[%emt 0:00:50]} 11. h3 {[%emt 0:02:55]} c6 {[%emt 0:03:10]} 12. Qc2 {[%emt 0:03:24]} Qc7 {[%emt 0:03:10]} 13. Bd3 {[%emt 0:01:17]} h6 {[%emt 0:06:05]} 14. Rac1 {[%emt 0:03:13]} Bf4 {[%emt 0:02:42]} 15. Rfe1 {[%emt 0:07:36]} Bf5 {[%emt 0:05:49]} 16. Ne5 {[%emt 0:10:42]} Bxe5 {[%emt 0:05:16]} 17. dxe5 {[%emt 0:02:50]} Qxe5 {[%emt 0:01:43]} 18. f3 {[%emt 0:07:10]} Ng3 {[%emt 0:06:45]} 19. Bf2 {[%emt 0:02:35]} Ne2+ {[%emt 0:01:20]} 20. Rxe2 {[%emt 0:03:46]} Qxe2 {[%emt 0:03:21]} 21. Bxf5 {[%emt 0:00:28]} Qa6 {[%emt 0:04:20]} 22. a3 {[%emt 0:01:02]} b6 {[%emt 0:02:06]} 23. Bd4 {[%emt 0:03:49]} Nh5 {[%emt 0:01:36]} 24. Bd3 {[%emt 0:10:31]} Qb7 {[%emt 0:00:48]} 1/2-1/2

[Event "DFMMLV 2024"]
[Site "Braunfels"]
[Date "2024.05.31"]
[Round "3.33"]
[White "Pavlov, Liliane"]
[Black "Rath, Alina"]
[Result "0-1"]
[ECO "D32"]
[WhiteElo "1846"]
[BlackElo "2041"]
[Annotator "NA RC"]
[PlyCount "60"]
[EventDate "2024.05.30"]
[EventType "team-tourn"]
[EventCountry "GER"]
[SourceTitle "playchess.com"]
[Source "ChessBase"]
[SourceQuality "1"]
[TimeControl "40/5400+30:1800+30"]

1. d4 {[%emt 0:00:03]} d5 {[%emt 0:00:07]} 2. c4 {[%emt 0:00:08]} e6 {[%emt 0:00:05]} 3. Nf3 {[%emt 0:00:06]} c5 {[%emt 0:00:11]} 4. cxd5 {[%emt 0:00:20]} exd5 {[%emt 0:00:08]} 5. Nc3 {[%emt 0:00:30]} Nc6 {[%emt 0:00:09]} 6. dxc5 {[%emt 0:00:49]} d4 {[%emt 0:00:30]} 7. Ne4 {[%emt 0:00:57]} Qd5 {[%emt 0:00:39]} 8. Nd6+ {[%emt 0:02:28]} Bxd6 {[%emt 0:00:10]} 9. cxd6 {[%emt 0:00:06]} Qxd6 {[%emt 0:00:06]} 10. g3 {[%emt 0:00:47]} Nf6 {[%emt 0:00:13]} 11. Bg2 {[%emt 0:01:00]} O-O {[%emt 0:00:25]} 12. O-O {[%emt 0:00:15]} Rd8 {[%emt 0:02:06]} 13. Qb3 {[%emt 0:02:25]} h6 {[%emt 0:02:41]} 14. Rd1 {[%emt 0:04:09]} Qe7 {[%emt 0:01:24]} 15. e3 {[%emt 0:02:27]} Be6 {[%emt 0:01:25]} 16. Qa4 {[%emt 0:00:55]} dxe3 {[%emt 0:05:03]} 17. Bxe3 {[%emt 0:00:39]} a6 {[%emt 0:01:00]} 18. Nd4 {[%emt 0:04:07]} Nxd4 {[%emt 0:05:57]} 19. Bxd4 {[%emt 0:00:57]} Nd5 {[%emt 0:02:46]} 20. Rac1 {[%emt 0:01:32]} Rd7 {[%emt 0:04:18]} 21. Bc5 {[%emt 0:04:20]} Qf6 {[%emt 0:05:35]} 22. Bd4 {[%emt 0:05:05]} Qd8 {[%emt 0:01:19]} 23. a3 {[%emt 0:01:34]} Rc8 {[%emt 0:03:23]} 24. f4 {[%emt 0:07:04]} Rxc1 {[%emt 0:02:16]} 25. Rxc1 {[%emt 0:00:55]} Nxf4 {[%emt 0:02:43]} 26. gxf4 {[%emt 0:02:19]} Rxd4 {[%emt 0:00:08]} 27. Qc2 {[%emt 0:00:24]} Rxf4 {[%emt 0:01:47]} 28. Qc7 {[%emt 0:00:52]} Qd4+ {[%emt 0:01:29]} 29. Kh1 {[%emt 0:00:14]} b6 {[%emt 0:02:24]} 30. b4 {[%emt 0:02:12]} Kh7 {[%emt 0:03:31]} 0-1

[Event "DFMMLV 2024"]
[Site "Braunfels"]
[Date "2024.05.31"]
[Round "3.34"]
[White "Von Herman, Brigitte"]
[Black "Albayrak, Berrak"]
[Result "1/2-1/2"]
[ECO "B07"]
[WhiteElo "1922"]
[BlackElo "1850"]
[Annotator "NA RC"]
[PlyCount "80"]
[EventDate "2024.05.30"]
[EventType "team-tourn"]
[EventCountry "GER"]
[SourceTitle "playchess.com"]
[Source "ChessBase"]
[SourceQuality "1"]
[TimeControl "40/5400+30:1800+30"]

1. e4 {[%emt 0:00:05]} d6 {[%emt 0:00:06]} 2. Nc3 {[%emt 0:00:22]} Nf6 {[%emt 0:00:14]} 3. f4 {[%emt 0:00:44]} g6 {[%emt 0:00:31]} 4. Nf3 {[%emt 0:00:39]} Bg7 {[%emt 0:00:40]} 5. Bc4 {[%emt 0:04:30]} O-O {[%emt 0:00:41]} 6. d3 {[%emt 0:00:09]} c6 {[%emt 0:01:21]} 7. O-O {[%emt 0:02:01]} e5 {[%emt 0:05:44]} 8. fxe5 {[%emt 0:07:36]} dxe5 {[%emt 0:00:09]} 9. Qe1 {[%emt 0:03:32]} b5 {[%emt 0:06:19]} 10. Bb3 {[%emt 0:00:08]} Nbd7 {[%emt 0:01:19]} 11. Bg5 {[%emt 0:02:47]} Nc5 {[%emt 0:10:45]} 12. Qf2 {[%emt 0:06:05]} Nxb3 {[%emt 0:12:57]} 13. axb3 {[%emt 0:00:23]} Ng4 {[%emt 0:05:34]} 14. Bxd8 {[%emt 0:03:31]} Nxf2 {[%emt 0:00:08]} 15. Bb6 {[%emt 0:02:11]} Nh3+ {[%emt 0:09:27]} 16. Kh1 {[%emt 0:03:46]} Nf4 {[%emt 0:03:33]} 17. Bxa7 {[%emt 0:05:32]} Bg4 {[%emt 0:07:00]} 18. Bc5 {[%emt 0:01:04]} Bxf3 {[%emt 0:07:22]} 19. gxf3 {[%emt 0:00:50]} Rfd8 {[%emt 0:01:07]} 20. Ra3 {[%emt 0:05:52]} Bf8 {[%emt 0:04:28]} 21. Bxf8 {[%emt 0:01:27]} Kxf8 {[%emt 0:00:29]} 22. Rfa1 {[%emt 0:01:24]} Rac8 {[%emt 0:02:39]} 23. Ra7 {[%emt 0:02:57]} Ne6 {[%emt 0:01:46]} 24. Kg2 {[%emt 0:05:59]} Nd4 {[%emt 0:02:02]} 25. Rc1 {[%emt 0:01:49]} Rd6 {[%emt 0:01:04]} 26. Rb7 {[%emt 0:06:06]} Rf6 {[%emt 0:01:32]} 27. Nd1 {[%emt 0:13:15]} Rxf3 {[%emt 0:06:12]} 28. b4 {[%emt 0:02:27]} Rd8 {[%emt 0:03:39]} 29. Nf2 {[%emt 0:05:38]} Rf4 {[%emt 0:02:15]} 30. c3 {[%emt 0:01:27]} Ne6 {[%emt 0:02:31]} 31. Ra1 {[%emt 0:00:44]} h5 {[%emt 0:01:12]} 32. Ra6 {[%emt 0:01:09]} Rf6 {[%emt 0:00:47]} 33. Kg1 {[%emt 0:04:36]} Nf4 {[%emt 0:00:42]} 34. Rxb5 {[%emt 0:01:03]} Nxd3 {[%emt 0:00:31]} 35. Nxd3 {[%emt 0:01:18]} Rxd3 {[%emt 0:00:05]} 36. Rxe5 {[%emt 0:01:29]} Rd1+ {[%emt 0:00:14]} 37. Kg2 {[%emt 0:00:14]} Rd2+ {[%emt 0:00:34]} 38. Kg1 {[%emt 0:01:52]} Rd1+ {[%emt 0:00:56]} 39. Kg2 {[%emt 0:00:14]} Rd2+ {[%emt 0:00:26]} 40. Kg1 {[%emt 0:00:05]} Rd1+ {[%emt 0:01:29]} 1/2-1/2

[Event "DFMMLV 2024"]
[Site "Braunfels"]
[Date "2024.05.31"]
[Round "3.35"]
[White "Bauer, Laura Sophie"]
[Black "Skogvall, Martina"]
[Result "1/2-1/2"]
[ECO "B19"]
[WhiteElo "1874"]
[BlackElo "1952"]
[Annotator "NA RC"]
[PlyCount "90"]
[EventDate "2024.05.30"]
[EventType "team-tourn"]
[EventCountry "GER"]
[SourceTitle "playchess.com"]
[Source "ChessBase"]
[SourceQuality "1"]
[TimeControl "40/5400+30:1800+30"]

1. e4 {[%emt 0:00:02]} c6 {[%emt 0:00:39]} 2. d4 {[%emt 0:02:17]} d5 {[%emt 0:00:07]} 3. Nc3 {[%emt 0:00:09]} dxe4 {[%emt 0:00:06]} 4. Nxe4 {[%emt 0:00:06]} Bf5 {[%emt 0:00:13]} 5. Ng3 {[%emt 0:00:15]} Bg6 {[%emt 0:00:06]} 6. h4 {[%emt 0:00:27]} h6 {[%emt 0:00:38]} 7. Nf3 {[%emt 0:00:17]} Nd7 {[%emt 0:00:41]} 8. Bd3 {[%emt 0:00:27]} Bxd3 {[%emt 0:00:24]} 9. Qxd3 {[%emt 0:00:08]} e6 {[%emt 0:00:42]} 10. Bf4 {[%emt 0:00:44]} Qa5+ {[%emt 0:11:08]} 11. Bd2 {[%emt 0:00:39]} Bb4 {[%emt 0:06:12]} 12. c3 {[%emt 0:06:54]} Be7 {[%emt 0:00:23]} 13. c4 {[%emt 0:02:34]} Qc7 {[%emt 0:11:59]} 14. O-O-O {[%emt 0:03:59]} O-O-O {[%emt 0:07:14]} 15. Ne4 {[%emt 0:05:40]} Ngf6 {[%emt 0:01:58]} 16. Bc3 {[%emt 0:01:08]} Qf4+ {[%emt 0:02:15]} 17. Nfd2 {[%emt 0:05:38]} Ne5 {[%emt 0:04:24]} 18. Qe2 {[%emt 0:02:39]} Nxe4 {[%emt 0:02:26]} 19. dxe5 {[%emt 0:11:36]} Nxf2 {[%emt 0:11:23]} 20. Rdf1 {[%emt 0:02:18]} Bc5 {[%emt 0:00:16]} 21. Rh3 {[%emt 0:03:39]} Qf5 {[%emt 0:02:45]} 22. Rf3 {[%emt 0:05:50]} Nd3+ {[%emt 0:05:26]} 23. Kb1 {[%emt 0:00:57]} Nf4+ {[%emt 0:00:31]} 24. Qe4 {[%emt 0:00:09]} g5 {[%emt 0:14:13]} 25. g3 {[%emt 0:06:43]} Qxe4+ {[%emt 0:06:20]} 26. Nxe4 {[%emt 0:00:07]} Nd3 {[%emt 0:00:20]} 27. Kc2 {[%emt 0:04:41]} Nb4+ {[%emt 0:01:24]} 28. Bxb4 {[%emt 0:00:17]} Bxb4 {[%emt 0:00:08]} 29. Rxf7 {[%emt 0:01:15]} Rd4 {[%emt 0:01:44]} 30. Kb3 {[%emt 0:02:29]} a5 {[%emt 0:03:11]} 31. a3 {[%emt 0:02:46]} Rxe4 {[%emt 0:02:32]} 32. axb4 {[%emt 0:00:11]} Rxe5 {[%emt 0:00:54]} 33. Re7 {[%emt 0:01:01]} Rf5 {[%emt 0:01:20]} 34. Rd1 {[%emt 0:07:33]} Rd8 {[%emt 0:00:52]} 35. Rxd8+ {[%emt 0:00:10]} Kxd8 {[%emt 0:00:02]} 36. Rxe6 {[%emt 0:00:14]} Rf3+ {[%emt 0:02:03]} 37. Ka4 {[%emt 0:00:12]} Rxg3 {[%emt 0:01:11]} 38. Rxh6 {[%emt 0:00:25]} g4 {[%emt 0:00:42]} 39. Rg6 {[%emt 0:00:57]} axb4 {[%emt 0:00:17]} 40. Kxb4 {[%emt 0:00:06]} Ke7 {[%emt 0:00:30]} 41. Rg7+ {[%emt 0:33:29]} Kd6 {[%emt 0:03:13]} 42. h5 {[%emt 0:00:00]} c5+ {[%emt 0:00:41]} 43. Ka4 {[%emt 0:00:00]} Ke5 {[%emt 0:18:25]} 44. h6 {[%emt 0:00:00]} Rh3 {[%emt 0:01:55]} 45. Rxg4 {[%emt 0:00:00]} Rxh6 {[%emt 0:00:29]} 1/2-1/2

[Event "DFMMLV 2024"]
[Site "Braunfels"]
[Date "2024.05.31"]
[Round "3.36"]
[White "Fock, Amina"]
[Black "Ankerst, Milka"]
[Result "1-0"]
[ECO "B31"]
[WhiteElo "1932"]
[BlackElo "1954"]
[Annotator "NA RC"]
[PlyCount "91"]
[EventDate "2024.05.30"]
[EventType "team-tourn"]
[EventCountry "GER"]
[SourceTitle "playchess.com"]
[Source "ChessBase"]
[SourceQuality "1"]
[TimeControl "40/5400+30:1800+30"]

1. e4 {[%emt 0:00:03]} c5 {[%emt 0:00:16]} 2. Nf3 {[%emt 0:00:07]} Nc6 {[%emt 0:00:14]} 3. Bb5 {[%emt 0:00:08]} g6 {[%emt 0:00:27]} 4. Bxc6 {[%emt 0:00:17]} dxc6 {[%emt 0:00:12]} 5. d3 {[%emt 0:00:13]} Bg7 {[%emt 0:00:23]} 6. a4 {[%emt 0:00:16]} b6 {[%emt 0:00:32]} 7. a5 {[%emt 0:00:28]} Bg4 {[%emt 0:00:44]} 8. h3 {[%emt 0:02:21]} Bxf3 {[%emt 0:00:35]} 9. Qxf3 {[%emt 0:00:08]} Nf6 {[%emt 0:03:19]} 10. O-O {[%emt 0:02:28]} O-O {[%emt 0:01:16]} 11. Re1 {[%emt 0:01:56]} e5 {[%emt 0:01:49]} 12. Nd2 {[%emt 0:02:55]} Qe7 {[%emt 0:07:09]} 13. Nc4 {[%emt 0:06:06]} Rab8 {[%emt 0:03:15]} 14. Qg3 {[%emt 0:06:22]} Nd7 {[%emt 0:02:48]} 15. axb6 {[%emt 0:08:23]} axb6 {[%emt 0:00:46]} 16. Ra7 {[%emt 0:00:39]} Qe6 {[%emt 0:01:23]} 17. Bd2 {[%emt 0:01:46]} Ra8 {[%emt 0:15:01]} 18. Rxd7 {[%emt 0:07:04]} b5 {[%emt 0:05:09]} 19. Rd6 {[%emt 0:00:43]} Qe7 {[%emt 0:04:48]} 20. Rxc6 {[%emt 0:02:54]} bxc4 {[%emt 0:00:21]} 21. dxc4 {[%emt 0:01:28]} Qd7 {[%emt 0:01:15]} 22. Rxc5 {[%emt 0:04:01]} Qxd2 {[%emt 0:00:23]} 23. Qe3 {[%emt 0:10:00]} Qxc2 {[%emt 0:01:30]} 24. Re2 {[%emt 0:04:50]} Ra1+ {[%emt 0:00:56]} 25. Kh2 {[%emt 0:10:14]} Qd1 {[%emt 0:09:11]} 26. Qd2 {[%emt 0:01:40]} Qf1 {[%emt 0:03:15]} 27. Kg3 {[%emt 0:14:03]} Bh6 {[%emt 0:02:17]} 28. Qc2 {[%emt 0:00:28]} Bf4+ {[%emt 0:07:54]} 29. Kf3 {[%emt 0:00:06]} Rd8 {[%emt 0:01:10]} 30. Rd5 {[%emt 0:01:09]} Rc8 {[%emt 0:02:29]} 31. c5 {[%emt 0:01:57]} Rc1 {[%emt 0:00:25]} 32. Qb3 {[%emt 0:02:28]} R8xc5 {[%emt 0:03:07]} 33. Rd7 {[%emt 0:01:28]} R1c4 {[%emt 0:05:37]} 34. Rd1 {[%emt 0:01:02]} Qxd1 {[%emt 0:00:40]} 35. Qxd1 {[%emt 0:00:15]} Rd4 {[%emt 0:03:30]} 36. Qb3 {[%emt 0:01:10]} Rcc4 {[%emt 0:02:10]} 37. Qb8+ {[%emt 0:01:07]} Kg7 {[%emt 0:00:03]} 38. g3 {[%emt 0:00:36]} Rb4 {[%emt 0:01:14]} 39. Qe8 {[%emt 0:00:11]} Rd3+ {[%emt 0:02:20]} 40. Kg2 {[%emt 0:00:12]} Bg5 {[%emt 0:01:24]} 41. Qxe5+ {[%emt 0:32:29]} Bf6 {[%emt 0:30:29]} 42. Qc7 {[%emt 0:04:31]} Bxb2 {[%emt 0:07:52]} 43. e5 {[%emt 0:00:00]} Rc3 {[%emt 0:00:00]} 44. Qe7 {[%emt 0:00:00]} Ba3 {[%emt 0:00:00]} 45. Qf6+ {[%emt 0:00:00]} Kg8 {[%emt 0:00:00]} 46. e6 {[%emt 0:00:00]} 1-0